bitfinex-derivatives/quotes_BTCF0:USTF0_20250208
["timestamp","ask_amount","ask_price","bid_price","bid_amount"]
[1739026234947,0.3608,96189.0,96188.0,0.0615]
[1739026235749,0.3748,96189.0,96188.0,0.0615]
[1739026237257,0.3678,96189.0,96188.0,0.0615]
[1739026237459,0.3608,96189.0,96188.0,0.0625]
[1739026237960,0.19986136,96200.0,96189.0,0.2079345]
[1739026238259,0.19986136,96200.0,96190.0,0.2079313]
[1739026240063,0.40777366,96200.0,96190.0,0.2079313]
[1739026240258,0.20042137,96200.0,96190.0,0.2079313]
[1739026240460,0.19986136,96200.0,96190.0,0.2079313]
[1739026240660,0.19986136,96200.0,96190.0,0.21957939]
[1739026240863,0.00356022,96195.0,96190.0,0.21957939]
[1739026241256,0.00756022,96195.0,96190.0,0.22057939]
[1739026241458,0.00756022,96195.0,96190.0,0.22157939]
[1739026241653,0.006,96195.0,96190.0,0.22157939]
[1739026243166,0.2079298,96192.0,96190.0,0.01364809]
[1739026243960,0.2079298,96192.0,96190.0,0.002]
[1739026244266,0.2079298,96192.0,96190.0,0.001]
[1739026244468,0.2099298,96192.0,96190.0,0.001]
[1739026244662,0.2139298,96192.0,96190.0,0.002]
[1739026247069,0.3608,96191.0,96190.0,0.002]
[1739026248059,0.3608,96191.0,96190.0,0.001]
[1739026248264,0.5747302,96191.0,96190.0,0.002]
[1739026254570,0.2079691,96173.0,96168.0,0.0311]
[1739026254766,0.5687691,96173.0,96168.0,0.0311]
[1739026254966,0.5687691,96173.0,96168.0,0.0425472]
[1739026255366,0.5687691,96173.0,96168.0,0.0311]
[1739026256671,0.5697691,96173.0,96168.0,0.0311]
[1739026257569,0.5707691,96173.0,96168.0,0.0311]
[1739026262589,0.2099691,96173.0,96168.0,0.0311]
[1739026263086,0.002,96173.0,96168.0,0.0311]
[1739026263684,0.002,96173.0,96169.0,0.2079765]
[1739026265285,0.002,96173.0,96168.0,0.0311]
[1739026265586,0.002,96173.0,96172.0,0.5687713]
[1739026265784,0.002,96173.0,96172.0,0.6312713]
[1739026267890,0.001,96173.0,96172.0,0.6312713]
[1739026268097,0.2099691,96173.0,96172.0,0.0308]
[1739026268787,0.002,96173.0,96167.0,0.00019999]
[1739026268987,0.2079799,96168.0,96167.0,0.00019999]
[1739026271093,0.2079799,96168.0,96167.0,0.00119999]
[1739026271792,1.1419,96168.0,96158.0,0.00015594]
[1739026271998,0.2080232,96148.0,96147.0,0.0311]
[1739026272190,0.5688232,96148.0,96147.0,0.0311]
[1739026273392,0.5688232,96148.0,96147.0,0.0401]
[1739026274400,0.5688232,96148.0,96147.0,0.0491]
[1739026276699,0.3608,96148.0,96147.0,0.0491]
[1739026279298,0.2080194,96150.0,96147.0,0.0491]
[1739026280592,0.2080194,96150.0,96147.0,0.0401]
[1739026280906,0.2080225,96149.0,96147.0,0.0491]
[1739026282306,0.3608,96152.0,96147.0,0.0491]
[1739026283495,0.3608,96152.0,96147.0,0.0401]
[1739026283691,0.00015594,96157.0,96147.0,0.0491]
[1739026283894,0.00015594,96157.0,96156.0,0.2080059]
[1739026284191,0.07116,96175.0,96154.0,0.3608]
[1739026284192,0.2079659,96175.0,96154.0,0.3608]
[1739026284398,0.3608,96182.0,96163.0,0.3608]
[1739026284602,4e-05,96179.0,96174.0,0.2079656]
[1739026284801,4e-05,96179.0,96175.0,0.0607]
[1739026285198,4e-05,96179.0,96177.0,0.2079589]
[1739026287008,0.00015575,96187.0,96176.0,0.07232]
[1739026287211,0.003,96179.0,96177.0,0.2079605]
[1739026288109,0.00015575,96187.0,96177.0,0.2079605]
[1739026288312,0.00515575,96187.0,96177.0,0.2079605]
[1739026288805,0.003,96179.0,96177.0,0.2079605]
[1739026290107,0.004,96179.0,96177.0,0.2079605]
[1739026290717,0.001,96179.0,96177.0,0.2079605]
[1739026291697,0.004,96179.0,96177.0,0.2079605]
[1739026307013,4.74e-05,96191.0,96175.0,0.07165005]
[1739026307219,4.74e-05,96191.0,96190.0,0.5687324]
[1739026307915,0.2078888,96211.0,96190.0,0.7216]
[1739026308115,0.2078888,96211.0,96206.0,0.2078972]
[1739026309115,0.2078923,96209.0,96206.0,0.2078972]
[1739026310919,0.2078923,96209.0,96207.0,0.2078946]
[1739026312621,0.2088923,96209.0,96207.0,0.2078946]
[1739026312920,0.001,96209.0,96207.0,0.2078946]
[1739026316824,0.001,96209.0,96207.0,0.21906714]
[1739026321319,0.001,96209.0,96207.0,0.01117254]
[1739026321526,0.2079249,96194.0,96191.0,0.00015594]
[1739026321734,0.2400262,96193.0,96191.0,0.00015594]
[1739026322222,0.2400262,96193.0,96191.0,0.01100725]
[1739026322435,0.2400262,96193.0,96191.0,0.00015594]
[1739026322827,0.2400262,96193.0,96191.0,0.00915594]
[1739026323927,0.2400262,96193.0,96191.0,0.01815594]
[1739026324126,0.2400262,96193.0,96191.0,0.22608594]
[1739026326330,0.2400262,96193.0,96191.0,0.21708594]
[1739026326524,0.2400262,96193.0,96191.0,0.22608594]
[1739026332238,0.2400262,96193.0,96191.0,0.01815594]
[1739026336056,0.3608,96198.0,96194.0,0.2079217]
[1739026336443,0.3608,96198.0,96195.0,0.0309]
[1739026337453,0.2078933,96209.0,96196.0,0.2079194]
[1739026337646,0.2078933,96209.0,96204.0,0.207901]
[1739026338664,0.2078944,96208.0,96204.0,0.207901]
[1739026339158,0.2078964,96207.0,96204.0,0.207901]
[1739026339359,0.2079051,96203.0,96197.0,0.2079157]
[1739026339546,0.2079128,96200.0,96196.0,0.006]
[1739026339857,0.3608,96202.0,96196.0,0.2139174]
[1739026340545,0.3608,96202.0,96196.0,0.2079174]
[1739026340952,0.2079097,96201.0,96196.0,0.2079174]
[1739026341456,0.3608,96202.0,96196.0,0.2079174]
[1739026341657,0.2079125,96200.0,96196.0,0.2079174]
[1739026342653,0.2079125,96200.0,96196.0,0.2139174]
[1739026343059,0.2079125,96200.0,96196.0,0.2149174]
[1739026343353,0.2079143,96199.0,96196.0,0.2089174]
[1739026343551,0.2079143,96199.0,96196.0,0.2109174]
[1739026344758,0.2079171,96198.0,96196.0,0.2109174]
[1739026344958,0.2079171,96198.0,96196.0,0.003]
[1739026346066,0.2079171,96198.0,96196.0,0.002]
[1739026346251,0.2079108,96200.0,96196.0,0.004]
[1739026346453,0.2079172,96197.0,96196.0,0.004]
[1739026348153,0.2079281,96192.0,96191.0,0.00015594]
[1739026348452,0.5687281,96192.0,96191.0,0.00015594]
[1739026349363,0.5687281,96192.0,96191.0,0.00915594]
[1739026349964,0.5687281,96192.0,96191.0,0.01815594]
[1739026359972,0.5687281,96192.0,96184.0,0.01104164]
[1739026359973,0.2079475,96183.0,96182.0,0.00155944]
[1739026360176,0.5687475,96183.0,96182.0,0.00155944]
[1739026361378,0.5687475,96183.0,96182.0,0.01055944]
[1739026361766,0.3608,96183.0,96176.0,0.0332]
[1739026361978,0.207967,96174.0,96173.0,0.00015594]
[1739026363184,0.208967,96174.0,96173.0,0.00915594]
[1739026363980,0.209967,96174.0,96173.0,0.00015594]
[1739026364679,0.212967,96174.0,96173.0,0.00015594]
[1739026365069,0.209967,96174.0,96173.0,0.00015594]
[1739026365270,0.212967,96174.0,96173.0,0.00015594]
[1739026374384,0.573767,96174.0,96173.0,0.00015594]
[1739026378685,0.571767,96174.0,96173.0,0.00015594]
[1739026378874,0.573767,96174.0,96173.0,0.00015594]
[1739026379684,0.572767,96174.0,96173.0,0.00015594]
[1739026380676,0.571767,96174.0,96173.0,0.00015594]
[1739026380877,0.003,96174.0,96173.0,0.00015594]
[1739026381079,0.002,96174.0,96173.0,0.00015594]
[1739026381278,0.003,96174.0,96173.0,0.00015594]
[1739026381784,0.001,96174.0,96173.0,0.00015594]
[1739026381985,0.002,96174.0,96173.0,0.20812504]
[1739026382886,0.002,96174.0,96173.0,0.20912504]
[1739026383584,0.2079502,96182.0,96173.0,0.00115594]
[1739026383779,0.2079502,96182.0,96175.0,0.2079646]
[1739026385082,0.2109502,96182.0,96175.0,0.2079646]
[1739026385285,0.2109502,96182.0,96176.0,0.2079625]
[1739026385585,0.2129502,96182.0,96177.0,0.0322]
[1739026385989,0.005,96182.0,96177.0,0.0322]
[1739026386181,0.2079523,96181.0,96177.0,0.0322]
[1739026386787,0.005,96182.0,96177.0,0.0322]
[1739026386979,0.2079566,96179.0,96177.0,0.0322]
[1739026387589,0.2079566,96179.0,96177.0,0.2401602]
[1739026388178,0.2089566,96179.0,96177.0,0.2401602]
[1739026388979,0.2079566,96179.0,96177.0,0.2401602]
[1739026390184,0.2099566,96179.0,96177.0,0.2401602]
[1739026390685,0.002,96179.0,96177.0,0.2401602]
[1739026391886,0.56926401,96185.0,96178.0,0.2079567]
[1739026392089,0.568744,96185.0,96178.0,0.2079567]
[1739026393084,0.3608,96185.0,96178.0,0.2079567]
[1739026393285,0.2079458,96184.0,96178.0,0.2079567]
[1739026393989,0.001,96179.0,96178.0,0.2079567]
[1739026394485,0.2079458,96184.0,96178.0,0.2079567]
[1739026394689,0.2089458,96184.0,96178.0,0.2079567]
[1739026394890,0.2129458,96184.0,96178.0,0.2079567]
[1739026395283,0.2119458,96184.0,96178.0,0.2089567]
[1739026396285,0.2119458,96184.0,96178.0,0.001]
[1739026396490,0.2079458,96184.0,96179.0,0.2079541]
[1739026397079,0.2119458,96184.0,96179.0,0.2079541]
[1739026397483,0.2079458,96184.0,96179.0,0.2079541]
[1739026397689,0.2109458,96184.0,96179.0,0.2079541]
[1739026398387,0.2129458,96184.0,96179.0,0.2079541]
[1739026398994,0.2109458,96184.0,96179.0,0.2079541]
[1739026399191,0.2119458,96184.0,96179.0,0.2079541]
[1739026399795,0.2079483,96183.0,96173.0,0.20812444]
[1739026399994,0.2079516,96182.0,96173.0,0.20812444]
[1739026400789,0.2079516,96182.0,96173.0,0.00015594]
[1739026401096,0.2079524,96181.0,96174.0,0.2079665]
[1739026401287,0.2399524,96181.0,96174.0,0.2079665]
[1739026402297,0.3608,96179.0,96174.0,0.2079665]
[1739026402898,0.3608,96179.0,96177.0,0.2079587]
[1739026403489,0.3628,96179.0,96177.0,0.2079587]
[1739026406701,0.3608,96179.0,96177.0,0.2079587]
[1739026406892,0.3618,96179.0,96177.0,0.2079587]
[1739026407094,0.3618,96179.0,96173.0,0.01084753]
[1739026407398,0.2079611,96177.0,96173.0,0.01084753]
[1739026407797,0.2079657,96175.0,96173.0,0.01084753]
[1739026408599,0.2079657,96175.0,96173.0,0.00015594]
[1739026408793,0.2079843,96167.0,96158.0,0.208001]
[1739026408993,0.2079843,96167.0,96161.0,0.01110482]
[1739026409203,0.2079843,96167.0,96161.0,4e-05]
[1739026409403,0.3608,96168.0,96161.0,4e-05]
[1739026410608,0.3618,96168.0,96161.0,0.00704]
[1739026411305,0.2079874,96165.0,96161.0,0.2150347]
[1739026411505,0.2079874,96165.0,96163.0,0.20799]
[1739026414104,0.2089874,96165.0,96163.0,0.21699]
[1739026414302,0.2089874,96165.0,96163.0,0.009]
[1739026415003,0.2099874,96165.0,96163.0,0.016]
[1739026415602,0.032,96164.0,96163.0,0.016]
[1739026416807,0.033,96164.0,96163.0,0.016]
[1739026417002,0.033,96164.0,96163.0,0.009]
[1739026417202,0.034,96164.0,96163.0,0.016]
[1739026421415,0.2080059,96156.0,96155.0,0.01105204]
[1739026421616,0.5688059,96156.0,96155.0,0.01105204]
[1739026423221,0.2080081,96155.0,96147.0,0.01116626]
[1739026423524,0.2080319,96144.0,96139.0,0.0316]
[1739026423724,0.2080319,96144.0,96139.0,0.0426974]
[1739026424126,0.2080354,96143.0,96139.0,0.0426974]
[1739026425827,0.2080354,96143.0,96139.0,0.0516974]
[1739026426528,0.2080354,96143.0,96139.0,0.0426974]
[1739026426721,0.2100354,96143.0,96139.0,0.0526974]
[1739026435735,0.3608,96142.0,96139.0,0.0526974]
[1739026436330,0.5688371,96142.0,96139.0,0.0526974]
[1739026436725,0.5688371,96142.0,96139.0,0.0516974]
[1739026436930,0.5698371,96142.0,96139.0,0.0526974]
[1739026437838,0.5698371,96142.0,96139.0,0.0436974]
[1739026438041,0.5708371,96142.0,96139.0,0.0526974]
[1739026438239,0.3628,96142.0,96139.0,0.0526974]
[1739026438443,0.2080405,96140.0,96139.0,0.0526974]
[1739026439554,0.2080405,96140.0,96139.0,0.0436974]
[1739026439845,0.2090405,96140.0,96139.0,0.0516974]
[1739026440139,0.2100405,96140.0,96139.0,0.0526974]
[1739026447650,0.5708405,96140.0,96139.0,0.0526974]
[1739026452845,0.3628,96140.0,96139.0,0.0526974]
[1739026453641,0.002,96140.0,96139.0,0.0526974]
[1739026453847,0.36095594,96151.0,96150.0,0.2080189]
[1739026455051,0.2079706,96173.0,96161.0,0.2079951]
[1739026455250,0.0654516,96171.0,96162.0,0.4233]
[1739026455657,0.2079706,96173.0,96162.0,0.4233]
[1739026455857,4.001e-05,96163.0,96162.0,0.4233]
[1739026457252,0.00104001,96163.0,96162.0,0.4233]
[1739026457461,0.00204001,96163.0,96162.0,0.4273]
[1739026457955,0.00204001,96163.0,96162.0,0.4363]
[1739026458856,0.00204001,96163.0,96162.0,0.44687067]
[1739026460258,0.00015602,96172.0,96162.0,0.44687067]
[1739026460456,0.00015602,96172.0,96171.0,0.3608]
[1739026461661,0.00315602,96172.0,96171.0,0.3608]
[1739026463855,0.00515602,96172.0,96171.0,0.3608]
[1739026469172,0.00515602,96172.0,96171.0,0.5687735]
[1739026479772,0.0325,96191.0,96183.0,0.2079467]
[1739026479973,0.0325,96191.0,96171.0,0.3608]
[1739026479974,0.0325,96191.0,96189.0,0.2079336]
[1739026480382,0.0325,96191.0,96190.0,0.3608]
[1739026480575,0.20948301,96195.0,96190.0,0.3608]
[1739026480974,0.009,96191.0,96190.0,0.3608]
[1739026481174,0.018,96191.0,96190.0,0.3608]
[1739026481680,0.009,96191.0,96190.0,0.3608]
[1739026481981,0.009,96191.0,96190.0,0.3618]
[1739026482182,0.21848301,96195.0,96190.0,0.3618]
[1739026482482,0.22748301,96195.0,96190.0,0.3618]
[1739026483477,0.009,96191.0,96190.0,0.3618]
[1739026484281,0.21848301,96195.0,96190.0,0.3618]
[1739026484481,0.009,96191.0,96190.0,0.3628]
[1739026484993,0.018,96191.0,96190.0,0.3628]
[1739026485490,0.009,96191.0,96190.0,0.3618]
[1739026487788,0.018,96191.0,96190.0,0.3628]
[1739026508517,0.0193801,96191.0,96190.0,0.3628]
[1739026509205,0.01942161,96191.0,96190.0,0.3628]
[1739026512012,0.01942161,96191.0,96190.0,0.002]
[1739026513111,0.01942161,96191.0,96183.0,0.00015594]
[1739026513310,0.2079748,96171.0,96164.0,0.3608]
[1739026513508,0.0332,96170.0,96167.0,0.19743754]
[1739026513707,0.207979,96169.0,96167.0,0.19743754]
[1739026514418,0.00142161,96168.0,96167.0,0.01050337]
[1739026514619,0.00281409,96168.0,96166.0,0.18693417]
[1739026515207,0.00284345,96167.0,96166.0,0.18693417]
[1739026517719,0.00384345,96167.0,96166.0,0.18693417]
[1739026517919,0.00384345,96167.0,96158.0,0.00015594]
[1739026518315,0.00284345,96163.0,96158.0,0.00015594]
[1739026519212,0.2079989,96160.0,96158.0,0.00515594]
[1739026519413,0.2079989,96160.0,96158.0,0.01415594]
[1739026520316,0.00284345,96159.0,96158.0,0.01415594]
[1739026521017,0.004237,96159.0,96158.0,0.01515594]
[1739026521820,0.005237,96159.0,96158.0,0.01515594]
[1739026523222,0.006237,96159.0,96158.0,0.01515594]
[1739026526723,0.00763032,96159.0,96158.0,0.01515594]
[1739026532619,0.00773865,96159.0,96158.0,0.01515594]
[1739026532819,0.00773865,96159.0,96158.0,0.04545594]
[1739026533727,0.00905216,96159.0,96158.0,0.04545594]
[1739026538227,0.00905216,96159.0,96158.0,0.01515594]
[1739026539331,0.01044421,96159.0,96158.0,0.01515594]
[1739026544930,0.01183661,96159.0,96158.0,0.01515594]
[1739026551540,0.01247403,96159.0,96158.0,0.01515594]
[1739026553631,0.01147403,96159.0,96158.0,0.00615594]
[1739026553837,0.01247403,96159.0,96158.0,0.01515594]
[1739026554731,0.01147403,96159.0,96158.0,0.00915594]
[1739026554934,0.01147403,96159.0,96158.0,0.01815594]
[1739026560352,0.01147403,96159.0,96158.0,0.22615754]
[1739026563353,0.00721862,96159.0,96158.0,0.22615754]
[1739026563852,0.3608,96179.0,96172.0,0.2079696]
[1739026564636,0.3608,96179.0,96170.0,0.0631]
[1739026564853,0.06544598,96180.0,96177.0,0.3608]
[1739026565045,0.0321,96181.0,96177.0,0.3608]
[1739026565046,0.00115594,96178.0,96177.0,0.3608]
[1739026565951,0.00115594,96178.0,96177.0,0.3698]
[1739026567252,0.00015594,96178.0,96177.0,0.3698]
[1739026567454,0.00015594,96178.0,96177.0,0.3788]
[1739026567648,0.00015594,96178.0,96177.0,0.38939567]
[1739026572454,0.00015594,96178.0,96177.0,0.38039567]
[1739026572655,0.00015594,96178.0,96177.0,0.38939567]
[1739026572855,0.00115594,96178.0,96177.0,0.38939567]
[1739026573058,0.00115594,96178.0,96177.0,0.38039567]
[1739026573356,0.00115594,96178.0,96177.0,0.38939567]
[1739026573553,0.00015594,96178.0,96177.0,0.38039567]
[1739026573854,0.00115594,96178.0,96177.0,0.38939567]
[1739026576253,0.00115594,96178.0,96177.0,0.59735617]
[1739026579761,0.00115594,96178.0,96177.0,0.23655617]
[1739026579961,0.00115594,96178.0,96177.0,0.02859567]
[1739026590679,0.00115594,96178.0,96177.0,0.59735617]
[1739026597490,0.00115594,96178.0,96177.0,0.38939567]
[1739026599689,0.00115594,96178.0,96177.0,0.02859567]
[1739026607685,0.20911434,96178.0,96177.0,0.018]
[1739026613996,0.56991434,96178.0,96177.0,0.018]
[1739026621398,0.20911434,96178.0,96177.0,0.018]
[1739026627006,0.2079614,96177.0,96154.0,0.2080098]
[1739026627299,0.2079757,96170.0,96165.0,0.0313]
[1739026627802,0.2079843,96166.0,96165.0,0.0313]
[1739026628891,0.2079843,96166.0,96165.0,0.0353]
[1739026630599,0.2079843,96166.0,96165.0,0.0363]
[1739026631400,0.2089843,96166.0,96165.0,0.0313]
[1739026636196,0.2089843,96166.0,96165.0,0.2392865]
[1739026637003,0.2079843,96166.0,96165.0,0.2392865]
[1739026637205,0.2079843,96166.0,96165.0,0.2452865]
[1739026638504,0.2079843,96166.0,96165.0,0.2462865]
[1739026639600,0.2079843,96166.0,96165.0,0.2472865]
[1739026640806,0.2079843,96166.0,96165.0,0.2462865]
[1739026641503,0.2079843,96166.0,96165.0,0.2402865]
[1739026641702,0.2079843,96166.0,96165.0,0.2462865]
[1739026643708,0.2079843,96166.0,96165.0,0.2492865]
[1739026644007,0.2079843,96166.0,96165.0,0.2532865]
[1739026644604,0.00015594,96178.0,96165.0,0.0453]
[1739026644796,0.2079636,96176.0,96174.0,0.3608]
[1739026647207,0.2079656,96175.0,96174.0,0.3608]
[1739026648004,0.2079656,96175.0,96174.0,0.37133073]
[1739026649513,0.2079656,96175.0,96174.0,0.01053073]
[1739026649813,0.2079656,96175.0,96174.0,0.3608]
[1739026650812,0.2099656,96175.0,96174.0,0.3608]
[1739026654211,0.002,96175.0,96170.0,0.3608]
[1739026654418,0.2079689,96174.0,96170.0,0.3608]
[1739026654720,0.002,96175.0,96170.0,0.3608]
[1739026655020,0.2079706,96173.0,96170.0,0.3608]
[1739026656216,0.2079706,96173.0,96170.0,0.3638]
[1739026657016,0.2079706,96173.0,96170.0,0.3608]
[1739026657219,0.2079706,96173.0,96170.0,0.3648]
[1739026663418,0.00015594,96178.0,96170.0,0.3648]
[1739026663619,0.00015594,96178.0,96177.0,0.2079605]
[1739026665617,4e-05,96182.0,96177.0,0.3608]
[1739026665831,4e-05,96182.0,96181.0,0.2079519]
[1739026667228,4e-05,96182.0,96181.0,0.2129519]
[1739026668725,4e-05,96182.0,96181.0,0.2219519]
[1739026669124,4e-05,96182.0,96181.0,0.23251119]
[1739026670231,4e-05,96182.0,96181.0,0.95411119]
[1739026677143,0.00015585,96191.0,96181.0,0.74615929]
[1739026677446,0.00015585,96191.0,96190.0,0.5687324]
[1739026679247,0.00415585,96191.0,96190.0,0.5687324]
[1739026682850,0.00415585,96191.0,96190.0,0.3608]
[1739026683247,0.03575585,96191.0,96190.0,0.3608]
[1739026686352,0.03575585,96191.0,96186.0,0.2079406]
[1739026686559,0.03,96190.0,96186.0,0.2079406]
[1739026688051,0.03,96190.0,96183.0,0.3608]
[1739026689557,0.03,96190.0,96183.0,0.3628]
[1739026690357,0.03,96190.0,96184.0,0.2079445]
[1739026690750,0.03,96190.0,96183.0,0.36372]
[1739026691061,0.03,96190.0,96187.0,0.2079381]
[1739026691770,0.033,96190.0,96187.0,0.2079381]
[1739026692558,0.03,96190.0,96187.0,0.2079381]
[1739026692752,0.033,96190.0,96187.0,0.2079381]
[1739026694464,0.033,96190.0,96188.0,0.2079363]
[1739026695454,0.03,96190.0,96188.0,0.2079363]
[1739026695660,0.033,96190.0,96188.0,0.2079363]
[1739026696765,0.033,96190.0,96189.0,0.3608]
[1739026697853,0.03,96190.0,96189.0,0.3608]
[1739026698054,0.033,96190.0,96189.0,0.3608]
[1739026702364,0.003,96190.0,96189.0,0.3608]
[1739026706664,0.003,96190.0,96181.0,0.01071523]
[1739026706956,0.2079457,96184.0,96181.0,0.01071523]
[1739026707357,0.2079497,96182.0,96181.0,0.01071523]
[1739026707966,0.2079497,96182.0,96181.0,0.01371523]
[1739026708368,0.2079497,96182.0,96181.0,0.00315594]
[1739026708663,0.2079497,96182.0,96181.0,0.00915594]
[1739026709766,0.2079497,96182.0,96181.0,0.01415594]
[1739026722970,0.2079735,96171.0,96170.0,0.00155963]
[1739026725579,0.2079735,96171.0,96170.0,0.00955963]
[1739026725876,0.2089735,96171.0,96170.0,0.01855963]
[1739026752994,0.2089735,96171.0,96170.0,0.01055963]
[1739026753193,0.2089735,96171.0,96170.0,0.01455963]
[1739026757998,0.5697735,96171.0,96170.0,0.01455963]
[1739026758893,0.2089735,96171.0,96170.0,0.01455963]
[1739026759094,0.5697735,96171.0,96170.0,0.01455963]
[1739026759600,0.2089735,96171.0,96170.0,0.01455963]
[1739026759898,0.58049933,96171.0,96170.0,0.01455963]
[1739026764395,0.5697735,96171.0,96170.0,0.01455963]
[1739026765295,0.207993,96162.0,96155.0,0.0317]
[1739026766501,0.208993,96162.0,96161.0,0.00915594]
[1739026766901,0.209993,96162.0,96161.0,0.01615594]
[1739026767803,0.570793,96162.0,96161.0,0.01615594]
[1739026768795,0.570793,96162.0,96143.0,0.0617]
[1739026768796,0.43368,96162.0,96143.0,0.0617]
[1739026769103,0.2080281,96146.0,96143.0,0.0617]
[1739026770499,0.2080305,96145.0,96143.0,0.0617]
[1739026770705,0.2080305,96145.0,96143.0,0.08107871]
[1739026771695,0.2080305,96145.0,96143.0,0.05027871]
[1739026772094,0.2090305,96145.0,96143.0,0.05027871]
[1739026772912,0.2100305,96145.0,96143.0,0.05027871]
[1739026773095,0.2100305,96145.0,96143.0,0.01937871]
[1739026773301,0.5708305,96145.0,96143.0,0.01937871]
[1739026773799,0.5708305,96145.0,96143.0,0.01637871]
[1739026774904,0.5708305,96145.0,96139.0,0.0324]
[1739026774905,0.2080405,96140.0,96139.0,0.0324]
[1739026776306,0.3628,96145.0,96139.0,0.04299903]
[1739026776307,0.002,96145.0,96139.0,0.04299903]
[1739026776712,0.001,96140.0,96139.0,0.04299903]
[1739026777013,0.001,96140.0,96139.0,0.04699903]
[1739026777508,0.001,96140.0,96139.0,0.04299903]
[1739026778009,0.001,96140.0,96139.0,0.04699903]
[1739026779115,0.001,96145.0,96139.0,0.04699903]
[1739026779902,0.001,96140.0,96139.0,0.04699903]
[1739026780518,0.001,96140.0,96139.0,0.04299903]
[1739026781515,0.001,96140.0,96139.0,0.04699903]
[1739026783011,0.001,96145.0,96139.0,0.04699903]
[1739026783719,0.20817802,96149.0,96139.0,0.04699903]
[1739026783918,0.001,96140.0,96139.0,0.04699903]
[1739026784410,0.001,96140.0,96139.0,0.04299903]
[1739026785820,0.00215602,96149.0,96139.0,0.04299903]
[1739026786028,0.001,96145.0,96142.0,0.208036]
[1739026786219,0.001,96145.0,96144.0,0.3608]
[1739026786415,0.001,96145.0,96144.0,0.5688319]
[1739026786632,4e-05,96163.0,96144.0,0.3608]
[1739026786826,4e-05,96163.0,96160.0,0.3608]
[1739026787026,4e-05,96163.0,96161.0,0.0915]
[1739026787226,4e-05,96163.0,96161.0,0.2994947]
[1739026788518,0.00104,96163.0,96161.0,0.2994947]
[1739026790216,0.00204,96163.0,96161.0,0.2994947]
[1739026790620,0.00204,96163.0,96161.0,0.30984225]
[1739026791023,0.00104,96163.0,96161.0,0.30984225]
[1739026791232,0.00204,96163.0,96161.0,0.30984225]
[1739026791432,0.00104,96163.0,96161.0,0.31484225]
[1739026792032,0.00104,96163.0,96161.0,0.31384225]
[1739026793534,4e-05,96163.0,96161.0,0.31384225]
[1739026793726,0.00104,96163.0,96161.0,0.31384225]
[1739026794127,0.00104,96163.0,96161.0,0.30984225]
[1739026794327,0.00104,96163.0,96161.0,0.31384225]
[1739026794631,0.00104,96163.0,96162.0,0.3608]
[1739026795824,0.00104,96163.0,96162.0,0.3638]
[1739026796336,4e-05,96163.0,96162.0,0.3638]
[1739026796533,0.00015602,96172.0,96171.0,0.2079735]
[1739026796735,0.3608,96188.0,96171.0,0.2079735]
[1739026796940,0.36140001,96188.0,96181.0,0.2079515]
[1739026797142,0.2079419,96186.0,96182.0,0.2079491]
[1739026797631,0.06544598,96190.0,96186.0,0.2079408]
[1739026797836,0.2079284,96192.0,96183.0,0.2079462]
[1739026798041,0.009,96188.0,96187.0,0.2079389]
[1739026798742,0.009,96186.0,96185.0,0.2079432]
[1739026799125,0.2079219,96195.0,96182.0,0.07119854]
[1739026799429,0.06544598,96192.0,96190.0,0.3608]
[1739026799631,0.2079219,96195.0,96190.0,0.3608]
[1739026800033,0.2079219,96195.0,96191.0,0.2079283]
[1739026801138,0.009,96195.0,96192.0,0.2079264]
[1739026801339,0.009,96195.0,96190.0,0.3618]
[1739026801340,0.009,96195.0,96193.0,0.2079248]
[1739026801838,0.018,96195.0,96193.0,0.2079248]
[1739026802038,0.018,96195.0,96191.0,0.001]
[1739026802245,0.009,96195.0,96190.0,0.3618]
[1739026802437,0.018,96195.0,96192.0,0.001]
[1739026802636,0.2079237,96194.0,96192.0,0.001]
[1739026803742,0.2079237,96194.0,96192.0,0.0124951]
[1739026803942,0.2079237,96194.0,96192.0,0.0114951]
[1739026804143,0.2079237,96194.0,96193.0,0.001]
[1739026804842,0.2169237,96194.0,96192.0,0.0124951]
[1739026805342,0.2169237,96194.0,96193.0,0.001]
[1739026805742,0.2259237,96194.0,96193.0,0.001]
[1739026806347,0.018,96194.0,96177.0,0.01035722]
[1739026806545,0.2079583,96178.0,96171.0,4e-05]
[1739026806737,0.0951,96177.0,96171.0,4e-05]
[1739026807939,0.1031,96177.0,96176.0,0.00115602]
[1739026809944,0.1101,96177.0,96176.0,0.00215602]
[1739026810445,0.015,96177.0,96176.0,0.00215602]
[1739026810843,0.015,96177.0,96176.0,0.03295602]
[1739026811144,0.015,96177.0,96176.0,0.39375602]
[1739026822248,0.2079335,96190.0,96176.0,0.39375602]
[1739026822455,0.20807146,96198.0,96189.0,0.3608]
[1739026822753,0.2079188,96197.0,96190.0,0.0323]
[1739026822959,0.2079215,96196.0,96190.0,0.0323]
[1739026823157,0.2079298,96192.0,96189.0,0.3608]
[1739026823655,0.009,96190.0,96189.0,0.3618]
[1739026824345,0.2079321,96191.0,96189.0,0.002]
[1739026825147,0.2079321,96191.0,96189.0,0.001]
[1739026825352,0.0318,96190.0,96189.0,0.001]
[1739026826367,0.0408,96190.0,96189.0,0.002]
[1739026832357,0.2079605,96177.0,96176.0,0.00015602]
[1739026832565,0.5687605,96177.0,96176.0,0.00015602]
[1739026834062,0.5747605,96177.0,96176.0,0.00115602]
[1739026835064,0.5787605,96177.0,96176.0,0.00215602]
[1739026841468,0.2179605,96177.0,96176.0,0.00215602]
[1739026841666,0.5787605,96177.0,96176.0,0.00215602]
[1739026842164,0.66013821,96177.0,96176.0,0.00215602]
[1739026842362,0.2080016,96158.0,96157.0,0.3608]
[1739026842564,0.3608,96165.0,96152.0,0.066]
[1739026842770,0.2080124,96153.0,96152.0,0.066]
[1739026842974,0.2080124,96153.0,96152.0,0.07660823]
[1739026845174,0.2080124,96153.0,96152.0,0.033]
[1739026845367,0.3608,96155.0,96152.0,0.009]
[1739026845883,0.001,96153.0,96152.0,0.018]
[1739026846470,0.2080247,96148.0,96143.0,0.00015594]
[1739026847473,0.2080262,96147.0,96143.0,0.00015594]
[1739026848366,0.2080262,96147.0,96146.0,0.3608]
[1739026849965,0.2090262,96147.0,96146.0,0.3608]
[1739026850372,0.2090262,96147.0,96146.0,0.3628]
[1739026852069,0.001,96147.0,96146.0,0.3628]